Cogmind - Beta 10.2 @@@ ROGUE MODE // 2020.11.04 @ 20:34:17 Player: GOR Result: Destroyed self with Firepult Performance ------------- Evolutions (0) 0 Regions Visited (4) 800 Robots Destroyed (18) 90 Value Destroyed (369) 369 Prototype IDs (25) 500 Alien Tech Used (0) 0 Bonus (395) 395 TOTAL SCORE: 2154 Bonus ------- Follower Combat Kills 95 Aligned with FarCom 300 Cogmind --------- Core Integrity 0/250 Matter 286/300 Energy 185/250 System Corruption 0% Temperature Cool (192) Movement Treading (220) Ox3 Location -9/Mines Parts ------- > --- POWER (1) -------- Ion Engine > --- PROPULSION (2) --- Light Treads Aluminum Leg > --- UTILITY (2) ------ Large Storage Unit High-capacity Storage Unit > --- WEAPON (2) ------- Firepult > --- INVENTORY (18) --- Ion Engine Ion Engine Large Storage Unit High-capacity Battery (400) Terrain Scanner Hacking Suite Grenade Launcher Mining Laser Peak State ------------ > --- POWER ------------ Ion Engine > --- PROPULSION ------- Light Treads Aluminum Leg > --- UTILITY ---------- Large Storage Unit High-capacity Storage Unit > --- WEAPON ----------- Firepult > --- INVENTORY -------- Ion Engine Ion Engine Large Storage Unit High-capacity Battery Terrain Scanner Hacking Suite Grenade Launcher Mining Laser [Rating: 26] Favorites ----------- Power Ion Engine Engine Ion Engine Propulsion Aluminum Leg Treads Light Treads Leg Aluminum Leg Utility High-capacity Storage Unit Storage High-capacity Storage Unit Weapon Small Laser Energy Gun Small Laser Energy Cannon Firepult Ballistic Gun Light Assault Rifle Special Weapon Mining Laser Build | -11 -10 -10 -10 -9 ------- Run | Scr Mat Min Exi Min Slots Evolved . | . . . . . Power . | . . . . . Propulsion . | . . . . . Utility . | . . . . . Weapon . | . . . . . Parts Attached 15 | . 8 . . 7 Power 1 | . 1 . . . Engine 1 | . 1 . . . Core . | . . . . . Reactor . | . . . . . Propulsion 2 | . . . . 2 Treads 2 | . . . . 2 Leg . | . . . . . Wheel . | . . . . . Hover . | . . . . . Flight . | . . . . . Utility 3 | . 3 . . . Device . | . . . . . Storage 3 | . 3 . . . Processor . | . . . . . Hackware . | . . . . . Protection . | . . . . . Artifact . | . . . . . Weapon 9 | . 4 . . 5 Energy Gun 5 | . 1 . . 4 Energy Cannon 1 | . . . . 1 Ballistic Gun 1 | . 1 . . . Ballistic Cannon . | . . . . . Launcher . | . . . . . Special Weapon 2 | . 2 . . . Impact Weapon . | . . . . . Slashing Weapon . | . . . . . Piercing Weapon . | . . . . . Special Melee Weapon . | . . . . . Unidentified Prototypes . | . . . . . Parts Lost 12 | . 4 . . 8 Power 1 | . 1 . . . Propulsion 2 | . . . . 2 Utility . | . . . . . Weapon 9 | . 3 . . 6 Highest Loss Streak 8 | . 4 . . 8 Average Slot Usage (%) 98 | . 97 100 100 92 Engine 13 | . 13 14 14 14 Leg 27 | . 28 28 28 19 Storage 27 | . 26 28 28 28 Energy Gun 13 | . 15 14 14 7 Ballistic Gun 12 | . 11 14 14 7 Naked Turns . | . . . . . Heaviest Build 75 | 10 55 55 55 75 Greatest Support 20 | 20 20 20 20 20 Greatest Overweight (x) 3 | . 2 2 2 3 Average Overweight (x) 1 | . 1 2 2 2 Largest Inventory Capacity 18 | 6 18 18 18 18 Average Capacity 17 | 6 14 18 18 18 Most Carried 16 | 6 10 14 16 16 Average Carried 11 | 5 5 12 14 11 Final Capacity 18 | 6 18 18 18 18 Final Carried 16 | 6 10 14 16 8 Class Distribution -------------------- 100% | Mutant Dominant Class ---------------- Mutant | -10/Materials Mutant | -10/Mines Mutant | -10/Exiles Mutant | -9/Mines Resources | -11 -10 -10 -10 -9 ----------- Run | Scr Mat Min Exi Min Matter Collected 316 | 200 79 5 . 32 Remotely . | . . . . . Salvage Created 478 | 112 254 37 . 75 Parts 27 | 3 17 4 . 3 Haulers Intercepted 1 | . 1 . . . Recyclers Shooed . | . . . . . Parts Field Recycled . | . . . . . Retrieved Matter . | . . . . . Parts Self-Destructed . | . . . . . Prevented . | . . . . . Kills | -11 -10 -10 -10 -9 ------- Run | Scr Mat Min Exi Min Combat Hostiles Destroyed 11 | . 5 1 . 5 Guns 6 | . 5 1 . . Cannons 3 | . . . . 3 AOE 2 | . . . . 2 Classes Destroyed 9 | 2 4 . . 3 Worker 2 | . . . . 2 Tunneler 1 | 1 . . . . Hauler 1 | . 1 . . . Recycler 1 | 1 . . . . Operator 1 | . 1 . . . Watcher 1 | . 1 . . . Grunt 6 | . 5 1 . . Demolisher 2 | . . . . 2 Assembled 3 | . . . . 3 Best Kill Streak 2 | 2 2 1 . 2 Combat Bots Only 2 | . 2 1 . 2 Max Kills in Single Turn 1 | 1 1 1 . 1 Gunslinging . | . . . . . Exploded 1 | . . . . 1 Melee . | . . . . . Uniques/NPCs Destroyed . | . . . . . Combat | -11 -10 -10 -10 -9 -------- Run | Scr Mat Min Exi Min Damage Taken 1259 | . 337 39 . 883 Core 253 | . 81 26 . 146 Absorbed by Shields . | . . . . . Core Remaining (%) 100 | 100 . . . . Volleys Fired 50 | 4 23 4 . 19 Largest 2 | 2 2 2 . 2 Hottest 250 | 90 120 60 . 250 Shots Fired 88 | 8 44 8 . 28 Gun 78 | 8 41 8 . 21 Cannon 7 | . . . . 7 Launcher . | . . . . . Special 3 | . 3 . . . Kinetic 30 | . 15 4 . 11 Thermal 58 | 8 29 4 . 17 Explosive . | . . . . . Electromagnetic . | . . . . . Robot Hit Streak 11 | 2 11 10 . 9 Robot Miss Streak 5 | 2 3 1 . 5 Penetration Max . | . . . . . Secondary Targets 1 | . 1 . . . Max Gunslinging Chain 1 | . 1 . . . Shots Hit Robots 62 | 4 30 7 . 21 Core Hits 36 | 3 15 3 . 15 Critical Hits . | . . . . . Critical Kills . | . . . . . Critical Parts Destroyed . | . . . . . Melee Attacks . | . . . . . Impact . | . . . . . Slashing . | . . . . . Piercing . | . . . . . Sneak Attacks . | . . . . . Combat Hostiles . | . . . . . Follow-up Attacks . | . . . . . Damage Inflicted 930 | 48 361 78 . 443 Guns 650 | 48 337 78 . 187 Cannons 141 | . . . . 141 Explosions 115 | . . . . 115 Melee . | . . . . . Ramming . | . . . . . Kinetic 194 | . 88 35 . 71 Thermal 736 | 48 273 43 . 372 Explosive . | . . . . . Electromagnetic . | . . . . . Impact . | . . . . . Slashing . | . . . . . Piercing . | . . . . . Highest Corruption . | . . . . . Average Corruption . | . . . . . Corruption Purged . | . . . . . Overload Shots . | . . . . . Overflow Damage 5 | . . . . 5 Projectiles . | . . . . . Explosions 5 | . . . . 5 Melee . | . . . . . Knockbacks . | . . . . . Impact . | . . . . . Kinetic . | . . . . . Secondary . | . . . . . Self-Inflicted Damage 45 | . . . . 45 Shots 4 | . . . . 4 Rammed . | . . . . . Targets Rammed . | . . . . . Kicked . | . . . . . Crushed . | . . . . . Highest Temperature 440 | 102 234 49 . 440 Average Temperature 101 | 52 68 23 . 148 Received Heat Transfer 230 | . 183 27 . 20 Effects 2 | . . . . 2 Energy Bleed 1 | . . . . 1 Damage (minor) 1 | . . . . 1 Siege Activations . | . . . . . Robots Corrupted . | . . . . . Combat Hostiles . | . . . . . Parts Fried . | . . . . . Impact Corruptions . | . . . . . Robots Melted . | . . . . . Combat Hostiles . | . . . . . Parts Melted 2 | 1 1 . . . Heat Transferred 2220 | 136 671 100 . 1313 Parts Sabotaged . | . . . . . Parts Stolen . | . . . . . Parts Stripped . | . . . . . Power Chain Reactions . | . . . . . Missiles Intercepted . | . . . . . Alert | -11 -10 -10 -10 -9 ------- Run | Scr Mat Min Exi Min Peak Influence 108 | 10 92 108 . 50 Initial 6 | . 6 . . . Average 28 | 6 50 14 . 27 Maximum Alert Level . | . . . . . Low Security (%) 100 | 100 100 100 . 100 Level 1 . | . . . . . Level 2 . | . . . . . Level 3 . | . . . . . Level 4 . | . . . . . Level 5 . | . . . . . High Security . | . . . . . Max Security . | . . . . . Squads Dispatched 2 | . 2 . . . Investigation 1 | . 1 . . . Extermination . | . . . . . Reinforcement 1 | . 1 . . . Assault . | . . . . . Garrison . | . . . . . Intercept . | . . . . . Construction Impeded . | . . . . . Haulers Reinforced . | . . . . . Stealth | -11 -10 -10 -10 -9 --------- Run | Scr Mat Min Exi Min Distress Signals 1 | . . . . 1 Communications Jammed . | . . . . . Distress Signals . | . . . . . Times Spotted 24 | . 10 4 . 10 Peak Tracking Total 5 | . 3 2 . 5 Tactical Retreats 1 | . 1 . . . Traps | -11 -10 -10 -10 -9 ------- Run | Scr Mat Min Exi Min Traps Triggered . | . . . . . Indirectly . | . . . . . Trap Hack Attempts . | . . . . . Triggered . | . . . . . Disarmed . | . . . . . Reprogrammed . | . . . . . Reused . | . . . . . Traps Extracted . | . . . . . Installed . | . . . . . Triggered . | . . . . . Machines | -11 -10 -10 -10 -9 ---------- Run | Scr Mat Min Exi Min Machines Disabled 1 | . . 1 . . Max in Single Turn . | . . . . . Machines Sabotaged . | . . . . . Garrisons Compromised . | . . . . . Overloaded Fab Kills . | . . . . . Fab Network Shutdowns . | . . . . . Hacking | -11 -10 -10 -10 -9 --------- Run | Scr Mat Min Exi Min Machines Accessed 7 | . 6 . 1 . Terminals 5 | . 5 . . . Fabricators . | . . . . . Repair Stations . | . . . . . Recycling Units 1 | . 1 . . . Scanalyzers . | . . . . . Garrison Access . | . . . . . Total Hacks 19 | . 18 . 1 . Successful 9 | . 8 . 1 . Failed 10 | . 10 . . . Catastrophic 1 | . 1 . . . Database Lockouts . | . . . . . Manual 17 | . 16 . 1 . Terminals 17 | . 17 . . . Fabricators . | . . . . . Repair Stations . | . . . . . Recycling Units 1 | . 1 . . . Scanalyzers . | . . . . . Garrison Access . | . . . . . Terminal Hacks 5 | . 4 . 1 . Prototype ID Bank 1 | . 1 . . . Branch Access Points 1 | . 1 . . . Unreport Threat 2 | . 2 . . . EX-Prototype ID Bank 1 | . . . 1 . Fabricator Hacks . | . . . . . Repair Station Hacks . | . . . . . Recycling Unit Hacks . | . . . . . Scanalyzer . | . . . . . Garrison Access Hacks . | . . . . . Unauthorized Hacks 4 | . 4 . . . Terminals 3 | . 3 . . . Assimilate 1 | . 1 . . . Botnet 2 | . 2 . . . Fabricators . | . . . . . Repair Stations . | . . . . . Recycling Units 1 | . 1 . . . Tunnel 1 | . 1 . . . Scanalyzers . | . . . . . Garrison Access . | . . . . . Data Cores Recovered . | . . . . . Used . | . . . . . Hacking Detections 3 | . 3 . . . Full Trace Events . | . . . . . Feedback Events . | . . . . . Feedback Blocked . | . . . . . Robot Schematics Acquired . | . . . . . Robots Built . | . . . . . Matter . | . . . . . Time . | . . . . . Total Robot Build Rating . | . . . . . Part Schematics Acquired . | . . . . . Parts Built . | . . . . . Matter . | . . . . . Time . | . . . . . Total Part Build Rating . | . . . . . Parts Repaired . | . . . . . Time . | . . . . . Parts Recycled . | . . . . . Recycled Matter . | . . . . . Retrieved Matter . | . . . . . Retrieved Components . | . . . . . Parts Scanalyzed . | . . . . . Part Schematics Acquired . | . . . . . Parts Damaged . | . . . . . Bothacking | -11 -10 -10 -10 -9 ------------ Run | Scr Mat Min Exi Min Used RIF Installer . | . . . . . Robots Hacked . | . . . . . Non-combat . | . . . . . Combat . | . . . . . Robot Hacks Applied . | . . . . . Relay Couplers Released . | . . . . . Robots Rewired . | . . . . . Allies Hacked . | . . . . . Hacks Repelled . | . . . . . Allies | -11 -10 -10 -10 -9 -------- Run | Scr Mat Min Exi Min Total Allies 5 | . . 5 . . Largest Group 4 | . . 4 4 2 Highest-Rated Group 75 | . . 75 75 32 Highest-Rated Ally 31 | . . 31 31 16 Total Orders . | . . . . . Ally Attacks 14 | . . 10 . 4 Total Damage 157 | . . 126 . 31 Kills 3 | . . 3 . . Allies Corrupted . | . . . . . Allies Melted . | . . . . . Intel | -11 -10 -10 -10 -9 ------- Run | Scr Mat Min Exi Min Robot Analysis Total . | . . . . . Derelict Logs Recovered 1 | . . 1 . . Drone Launches . | . . . . . Drone Recoveries . | . . . . . Exploration | -11 -10 -10 -10 -9 ------------- Run | Scr Mat Min Exi Min Turns Passed 2568 | 35 668 973 605 287 Spaces Moved 1337 | 17 347 525 335 113 Core . | . . . . . Treads 54 | . . . . 54 Legs 1283 | 17 347 525 335 59 Wheels . | . . . . . Hover . | . . . . . Flight . | . . . . . Fastest Speed 120 | 120 120 180 180 180 Average Speed 176 | 120 164 180 180 198 Slowest Speed 220 | 120 180 180 180 220 Overloaded Moves . | . . . . . Propulsion Burnouts . | . . . . . Robots Hopped . | . . . . . Cave-ins Triggered . | . . . . . Exploration Rate (%) 46 | 2 58 97 46 30 Regions Visited 4 Branch Regions 3 Pre-discovered Areas 1 | . 1 . . . Known Exits Taken 1 | . 1 . . . Unknown Exits Taken 3 | 1 . 1 1 . Scrap Searched 3 | . . 2 . 1 Spaces Dug . | . . . . . Terrain Destroyed 27 | . 1 . . 26 Melee . | . . . . . Projectile 4 | . 1 . . 3 AOE 23 | . . . . 23 Terrain Rammed . | . . . . . Walls Destroyed . | . . . . . Machines Disabled . | . . . . . Actions | -11 -10 -10 -10 -9 --------- Run | Scr Mat Min Exi Min Total 1455 | 24 396 547 337 151 Wait 33 | . 6 13 2 12 Move 1333 | 16 346 524 334 113 Hop . | . . . . . Pick Up 16 | 2 8 5 1 . Fast Attach 3 | . 3 . . . Attach 10 | . 3 . . 7 Detach 1 | . 1 . . . Swap 2 | . 2 . . . Drop 7 | 2 4 1 . . Fire 50 | 4 23 4 . 19 Melee . | . . . . . Ram . | . . . . . Kick . | . . . . . Crush . | . . . . . Escape Stasis . | . . . . . Rewire . | . . . . . Trap . | . . . . . Miscellaneous . | . . . . . Route ------- -11/Scrapyard -10/Materials (discovered 3 exits: [*Mat x2] / *Min) -10/Mines (discovered 3 exits: [*Mat x2] / *Exi) -10/Exiles -9/Mines History --------- Turn | Location | Event 1 | -11/Scrapyard | Discovered new exit (range 3) 36 | -11/Scrapyard | Entered Materials 127 | -10/Materials | Identified exit to Mines 208 | -10/Materials | Lost 4 parts (1p3w) 301 | -10/Materials | Build established: Mutant 381 | -10/Materials | Discovered new exit (range 3) 583 | -10/Materials | Discovered new exit (range 13) 704 | -10/Materials | Entered Mines 753 | -10/Mines | Assisted by bots powering up and referring to "LRC-V3" 789 | -10/Mines | Learned Materials emergency access door positions 1036 | -10/Mines | Discovered new exit (range 5) 1121 | -10/Mines | Discovered new exit (range 12) 1663 | -10/Mines | Deemed a non-threat by the Exiles lab entrance 1663 | -10/Mines | Discovered new exit (range 5) 1677 | -10/Mines | Entered Exiles 1677 | -10/Exiles | Accompanied by 4 allies 1707 | -10/Exiles | Led the pair of lost Derelicts to a safe place 1739 | -10/Exiles | Met 8R-AWN 1769 | -10/Exiles | Met EX-HEX 1874 | -10/Exiles | Met EX-BIN 1949 | -10/Exiles | Aligned with FarCom system 1951 | -10/Exiles | Given EX-Vault access code 1994 | -10/Exiles | Opened EX-Vault 2009 | -10/Exiles | Found Firepult 2046 | -10/Exiles | Warned to stay clear of 0b10 Research branches 2260 | -10/Exiles | Discovered new exit (range 14) 2282 | -10/Exiles | Left Exiles lab with Firepult 2282 | -10/Exiles | Entered Mines 2282 | -9/Mines | Accompanied by 2 allies 2385 | -9/Mines | Assembled infested the area 2413 | -9/Mines | Core integrity fell below 50% 2429 | -9/Mines | Core integrity fell below 20% 2460 | -9/Mines | Lost 8 parts (2n6w) 2569 | -9/Mines | Destroyed self with Firepult Last Messages --------------- 02464_ U-05 Engineer lays Concrete. 02466_ The unstable cave ceiling collapses. 02466_ U-05 Engineer lays Concrete. 02468_ The unstable cave ceiling collapses. 02468_ U-05 Engineer lays Concrete. 02470_ The unstable cave ceiling collapses. 02470_ U-05 Engineer builds a Wall. 02473_ U-05 Engineer lays Concrete. 02474_ as-73752 destroyed. 02474_ U-05 Engineer lays Concrete. 02476_ U-05 Engineer builds a Wall. 02482_ The unstable cave ceiling collapses. 02483_ K-01 Serf collects debris. 02484_ U-05 Engineer builds a Wall. 02503_ The unstable cave ceiling collapses. 02528_ Acquired 29 matter. 02530_ U-05 Engineer lays Concrete. 02560_ U-05 Engineer destroyed. 02562_ as-07755 destroyed. 02569_ as-88474 destroyed. Map ----- +----------------------------------------------------+ | | | | | | | | | | | | | | | | | | | | | | | | | ??????????????????????????????????????????????? | | ?????????????????????##########???????####????? | | ?????????????????????# #??????## ##???? | | ?????????????????????# """ #?????## % #???? | | ?????????????????????# """ #????## ! ##??? | | ?????????????????????# """ #????# #### | | ?????????????????????? #????# | | ???????????????????????? ??????## | | ????????????????????????## #????????###### | | ????????????????????????# #?????????????## | | ????????????????????????## ##????#????????# | | ?????????????????????????# ## #????????## | | ??????????????# ########; ;; ##???????## | | ??????? t k @% |* #??????## | | ??????????????########;;;# %! ##?????## | | ?????????????????????????## #= # #??????# | | ?????????????????????????# ####????## | | ??????????l?g????????????# ###### | | ?????????????????????????# ## | | ?????????????????????????# ## # | | ??????????????????##?????# ##### ## # | | ??????????????????? ???### # ### ##### | | ????????????????????# ???## # # % ## | | ????????????????????# ### # # ### # | | ????????????????????# # ### # | | ???????????????????# # # | | ??????????????? ###### ## # # # | | ???????????????? ?????????# ##### ## | | ???????????????????????????# #### ## | | ???????????????????????????# # # | | ???????????????????????????## ### | | ????????????????????????????# ### | | ??????????????????????????? ??# | | ????????????????????????? ??###### ###### | | ????????????????????????######???????#####????? | | ??????????????????????????????????????????????? | | ??????????????????????????????????????????????? | | ??????????????????????????????????????????????? | +----------------------------------------------------+ Best States ------------- Heat Dissipation 25 Energy Generation 10 Energy Capacity 250 Matter Stores 300 Matter Capacity 300 Sight Range 16 Terrain Scan Density 10 Evasion (%) 40 Recoil Reduction 1 Item Schematics ----------------- None Robot Schematics ------------------ None Fabricated ------------ Nothing Alien Tech Used ----------------- None Achievements -------------- None Challenges ------------ None Game ------ Seed DirtyAntigravReconfigurator Manual? 0 Play Time 00:15:24 Cumulative 149.7 hours Start 2020.11.04 @ 20:16:44 End 2020.11.04 @ 20:34:17 Sessions 1 Manual Loads 0 Difficulty Rogue Special Mode None Game No. 100 Rogue 100 Adventurer 0 Explorer 0 Win Type - Total 8 Types 6/0/0/2/0/0/0/0/0 Lore% 48 Gallery% 72 Achievement% 61 Wizard Run 0 Options --------- ASCII 0 Keyboard 0 Movement Mouse Keybinds 1 Fullscreen 2 Font 24/Terminus Map View 76x50 Tactical HUD 1 Map Filters NONE Filters NONE Steam 1 RUN: 300cd65b-9b04-4400-8db2-1dcfdd31c8d5